Cogmind - Beta 10.2 @@@ ROGUE MODE // 2021.03.18 @ 16:33:01 Player: goast115 Result: Destroyed by as-66811 with Assembled Rifle Performance ------------- Evolutions (0) 0 Regions Visited (2) 400 Robots Destroyed (14) 70 Value Destroyed (375) 375 Prototype IDs (0) 0 Alien Tech Used (0) 0 Bonus (0) 0 TOTAL SCORE: 845 Bonus ------- None Cogmind --------- Core Integrity 0/250 Matter 280/300 Energy 265/300 System Corruption 0% Temperature Cool (0) Movement Core (150) Ox2 Location -10/Mines Parts ------- > --- POWER (1) -------- (None) > --- PROPULSION (2) --- (None) > --- UTILITY (2) ------ Small Storage Unit Medium Battery > --- WEAPON (2) ------- Light Assault Rifle > --- INVENTORY (6) ---- Power Shielding Small Laser Peak State ------------ > --- POWER ------------ Ion Engine > --- PROPULSION ------- Light Treads Light Treads > --- UTILITY ---------- Small Storage Unit Medium Battery > --- WEAPON ----------- Light Assault Rifle Light Assault Rifle > --- INVENTORY -------- Light Ion Engine Aluminum Leg Wheel [Rating: 7] Favorites ----------- Power Ion Engine Engine Ion Engine Propulsion Light Treads Treads Light Treads Leg Aluminum Leg Utility Small Storage Unit Device Heat Sink Storage Small Storage Unit Weapon Light Assault Rifle Energy Gun EM Pulse Gun Ballistic Gun Light Assault Rifle Build | -11 -10 -10 ------- Run | Scr Mat Min Slots Evolved . | . . . Power . | . . . Propulsion . | . . . Utility . | . . . Weapon . | . . . Parts Attached 16 | 6 5 5 Power 4 | 1 2 1 Engine 4 | 1 2 1 Core . | . . . Reactor . | . . . Propulsion 3 | 2 . 1 Treads 2 | 2 . . Leg 1 | . . 1 Wheel . | . . . Hover . | . . . Flight . | . . . Utility 4 | 1 1 2 Device 1 | . . 1 Storage 3 | 1 1 1 Processor . | . . . Hackware . | . . . Protection . | . . . Artifact . | . . . Weapon 5 | 2 2 1 Energy Gun 2 | . 2 . Energy Cannon . | . . . Ballistic Gun 3 | 2 . 1 Ballistic Cannon . | . . . Launcher . | . . . Special Weapon . | . . . Impact Weapon . | . . . Slashing Weapon . | . . . Piercing Weapon . | . . . Special Melee Weapon . | . . . Unidentified Prototypes . | . . . Parts Lost 7 | . 2 5 Power 1 | . . 1 Propulsion 1 | . . 1 Utility 1 | . . 1 Weapon 4 | . 2 2 Highest Loss Streak 5 | . 2 5 Average Slot Usage (%) 90 | . 96 78 Engine 13 | . 14 11 Treads 21 | . 28 9 Leg 2 | . . 7 Device 1 | . . 4 Storage 23 | . 24 20 Energy Gun 11 | . 5 23 Ballistic Gun 14 | . 22 . Naked Turns . | . . . Heaviest Build 15 | 11 13 15 Greatest Support 40 | 3 40 40 Greatest Overweight (x) 4 | 3 3 4 Average Overweight (x) . | 2 . . Largest Inventory Capacity 6 | 6 6 6 Average Capacity 5 | 5 6 4 Most Carried 6 | 6 5 6 Average Carried 3 | 3 3 3 Final Capacity 6 | 6 6 6 Final Carried 4 | 3 4 2 Class Distribution -------------------- 100% | Mutant Dominant Class ---------------- Mutant | -10/Materials Mutant | -10/Mines Resources | -11 -10 -10 ----------- Run | Scr Mat Min Matter Collected 409 | 193 193 23 Remotely . | . . . Salvage Created 492 | . 387 105 Parts 26 | . 24 2 Haulers Intercepted . | . . . Recyclers Shooed 1 | . 1 . Parts Field Recycled . | . . . Retrieved Matter . | . . . Parts Self-Destructed . | . . . Prevented . | . . . Kills | -11 -10 -10 ------- Run | Scr Mat Min Combat Hostiles Destroyed 13 | . 11 2 Guns 13 | . 11 2 Classes Destroyed 3 | . 3 . Watcher 1 | . 1 . Swarmer 4 | . 4 . Grunt 9 | . 7 2 Best Kill Streak 4 | . 4 2 Combat Bots Only 3 | . 3 2 Max Kills in Single Turn 1 | . 1 1 Gunslinging . | . . . Exploded . | . . . Melee . | . . . Uniques/NPCs Destroyed . | . . . Combat | -11 -10 -10 -------- Run | Scr Mat Min Damage Taken 981 | . 537 444 Core 250 | . 109 141 Absorbed by Shields . | . . . Core Remaining (%) 100 | 100 . . Volleys Fired 64 | . 54 10 Largest 2 | . 2 2 Hottest 80 | . 80 80 Shots Fired 125 | . 105 20 Gun 125 | . 105 20 Cannon . | . . . Launcher . | . . . Special . | . . . Kinetic 91 | . 91 . Thermal . | . . . Explosive . | . . . Electromagnetic 34 | . 14 20 Robot Hit Streak 11 | . 11 7 Robot Miss Streak 6 | . 6 1 Penetration Max . | . . . Secondary Targets 2 | . 2 . Max Gunslinging Chain 1 | . 1 . Shots Hit Robots 75 | . 61 14 Core Hits 27 | . 22 5 Critical Hits . | . . . Critical Kills . | . . . Critical Parts Destroyed . | . . . Melee Attacks . | . . . Impact . | . . . Slashing . | . . . Piercing . | . . . Sneak Attacks . | . . . Combat Hostiles . | . . . Follow-up Attacks . | . . . Damage Inflicted 585 | . 443 142 Guns 583 | . 443 140 Cannons . | . . . Explosions . | . . . Melee . | . . . Ramming 2 | . . 2 Kinetic 354 | . 354 . Thermal . | . . . Explosive . | . . . Electromagnetic 229 | . 89 140 Impact . | . . . Slashing . | . . . Piercing . | . . . Highest Corruption . | . . . Average Corruption . | . . . Corruption Purged . | . . . Overload Shots . | . . . Overflow Damage . | . . . Projectiles . | . . . Explosions . | . . . Melee . | . . . Knockbacks . | . . . Impact . | . . . Kinetic . | . . . Secondary . | . . . Self-Inflicted Damage . | . . . Shots . | . . . Rammed 2 | . . 2 Targets Rammed 2 | . . 2 Kicked . | . . . Crushed . | . . . Highest Temperature 195 | . 72 195 Average Temperature 46 | . 16 95 Received Heat Transfer 225 | . 168 57 Siege Activations . | . . . Robots Corrupted . | . . . Combat Hostiles . | . . . Parts Fried 2 | . . 2 Impact Corruptions . | . . . Robots Melted . | . . . Combat Hostiles . | . . . Parts Melted . | . . . Heat Transferred . | . . . Parts Sabotaged . | . . . Parts Stolen . | . . . Parts Stripped . | . . . Power Chain Reactions . | . . . Missiles Intercepted . | . . . Alert | -11 -10 -10 ------- Run | Scr Mat Min Peak Influence 220 | . 220 99 Initial 49 | . . 49 Average 84 | . 99 83 Maximum Alert Level 1 | . 1 . Low Security (%) 88 | 100 80 100 Level 1 11 | . 19 . Level 2 . | . . . Level 3 . | . . . Level 4 . | . . . Level 5 . | . . . High Security . | . . . Max Security . | . . . Squads Dispatched 4 | . 3 1 Investigation 1 | . . 1 Extermination . | . . . Reinforcement 3 | . 3 . Assault . | . . . Garrison . | . . . Intercept . | . . . Construction Impeded . | . . . Haulers Reinforced . | . . . Stealth | -11 -10 -10 --------- Run | Scr Mat Min Distress Signals 1 | . 1 . Communications Jammed . | . . . Distress Signals . | . . . Times Spotted 35 | . 21 14 Peak Tracking Total 9 | . 5 9 Tactical Retreats 3 | . 2 1 Traps | -11 -10 -10 ------- Run | Scr Mat Min Traps Triggered . | . . . Indirectly . | . . . Trap Hack Attempts . | . . . Triggered . | . . . Disarmed . | . . . Reprogrammed . | . . . Reused . | . . . Traps Extracted . | . . . Installed . | . . . Triggered . | . . . Machines | -11 -10 -10 ---------- Run | Scr Mat Min Machines Disabled . | . . . Max in Single Turn . | . . . Machines Sabotaged . | . . . Garrisons Compromised . | . . . Overloaded Fab Kills . | . . . Fab Network Shutdowns . | . . . Hacking | -11 -10 -10 --------- Run | Scr Mat Min Machines Accessed 1 | . . 1 Terminals . | . . . Fabricators . | . . . Repair Stations . | . . . Recycling Units . | . . . Scanalyzers . | . . . Garrison Access . | . . . Total Hacks 1 | . . 1 Successful 1 | . . 1 Failed . | . . . Catastrophic . | . . . Database Lockouts . | . . . Manual . | . . . Terminals . | . . . Fabricators . | . . . Repair Stations . | . . . Recycling Units . | . . . Scanalyzers . | . . . Garrison Access . | . . . Terminal Hacks 1 | . . 1 Open Door 1 | . . 1 Fabricator Hacks . | . . . Repair Station Hacks . | . . . Recycling Unit Hacks . | . . . Scanalyzer . | . . . Garrison Access Hacks . | . . . Unauthorized Hacks . | . . . Terminals . | . . . Fabricators . | . . . Repair Stations . | . . . Recycling Units . | . . . Scanalyzers . | . . . Garrison Access . | . . . Data Cores Recovered . | . . . Used . | . . . Hacking Detections . | . . . Full Trace Events . | . . . Feedback Events . | . . . Feedback Blocked . | . . . Robot Schematics Acquired . | . . . Robots Built . | . . . Matter . | . . . Time . | . . . Total Robot Build Rating . | . . . Part Schematics Acquired . | . . . Parts Built . | . . . Matter . | . . . Time . | . . . Total Part Build Rating . | . . . Parts Repaired . | . . . Time . | . . . Parts Recycled . | . . . Recycled Matter . | . . . Retrieved Matter . | . . . Retrieved Components . | . . . Parts Scanalyzed . | . . . Part Schematics Acquired . | . . . Parts Damaged . | . . . Bothacking | -11 -10 -10 ------------ Run | Scr Mat Min Used RIF Installer . | . . . Robots Hacked . | . . . Non-combat . | . . . Combat . | . . . Robot Hacks Applied . | . . . Relay Couplers Released . | . . . Robots Rewired . | . . . Allies Hacked . | . . . Hacks Repelled . | . . . Allies | -11 -10 -10 -------- Run | Scr Mat Min Total Allies . | . . . Largest Group . | . . . Highest-Rated Group . | . . . Highest-Rated Ally . | . . . Total Orders . | . . . Ally Attacks . | . . . Total Damage . | . . . Kills . | . . . Allies Corrupted . | . . . Allies Melted . | . . . Intel | -11 -10 -10 ------- Run | Scr Mat Min Robot Analysis Total . | . . . Derelict Logs Recovered . | . . . Drone Launches . | . . . Drone Recoveries . | . . . Exploration | -11 -10 -10 ------------- Run | Scr Mat Min Turns Passed 912 | 98 548 266 Spaces Moved 426 | 53 234 139 Core 115 | 53 29 33 Treads 234 | . 205 29 Legs 77 | . . 77 Wheels . | . . . Hover . | . . . Flight . | . . . Fastest Speed 50 | 50 160 50 Average Speed 151 | 157 164 126 Slowest Speed 250 | 200 200 250 Overloaded Moves . | . . . Propulsion Burnouts . | . . . Robots Hopped . | . . . Cave-ins Triggered . | . . . Exploration Rate (%) 20 | 4 36 21 Regions Visited 2 Branch Regions 1 Pre-discovered Areas . | . . . Known Exits Taken . | . . . Unknown Exits Taken 2 | 1 1 . Scrap Searched . | . . . Spaces Dug . | . . . Terrain Destroyed . | . . . Melee . | . . . Projectile . | . . . AOE . | . . . Terrain Rammed . | . . . Walls Destroyed . | . . . Machines Disabled . | . . . Actions | -11 -10 -10 --------- Run | Scr Mat Min Total 590 | 68 311 211 Wait 52 | 1 8 43 Move 424 | 52 233 139 Hop . | . . . Pick Up 21 | 9 7 5 Fast Attach . | . . . Attach 15 | 6 4 5 Detach 2 | . 1 1 Swap 1 | . 1 . Drop 9 | . 3 6 Fire 64 | . 54 10 Melee . | . . . Ram . | . . . Kick . | . . . Crush 2 | . . 2 Escape Stasis . | . . . Rewire . | . . . Trap . | . . . Miscellaneous . | . . . Route ------- -11/Scrapyard -10/Materials -10/Mines History --------- Turn | Location | Event 16 | -11/Scrapyard | Discovered new exit (range 16) 99 | -11/Scrapyard | Entered Materials 311 | -10/Materials | Build established: Mutant 619 | -10/Materials | Discovered new exit (range 15) 647 | -10/Materials | Entered Mines 688 | -10/Mines | Core integrity fell below 50% 815 | -10/Mines | Assembled infested the area 820 | -10/Mines | Assisted by a Guerilla fighting off Assembled 864 | -10/Mines | Met a Derelict shopkeep closing up shop 878 | -10/Mines | Core integrity fell below 20% 913 | -10/Mines | Destroyed by as-66811 with Assembled Rifle Last Messages --------------- 00860_ EM Pulse Gun destroyed. 00863_ Connecting with SHOP.Sys... 00863_ Current location identified: Mines >>Open Door Sealed Doors opened. 00864_ 7X-TW8(g): "Sorry, the Unaware have moved into these parts and I'm closing up shop. No more sales from me!" 00865_ Heat Sink destroyed. 00866_ ALERT: Derelict activity detected in mines. Dispatching investigation squad. 00866_ K-01 Serf destroyed. 00868_ 7X-TW8(g): "You've got to be kidding me! I'm outta here..." 00871_ as-02675 destroyed. 00875_ EM Pulse Gun destroyed. 00877_ Ion Engine destroyed. 00878_ as-36046 destroyed. 00886_ 7X-TW8(g) destroyed. 00892_ Machine disabled. 00894_ Aluminum Leg destroyed. 00906_ Acquired Sml. Laser. Map ----- +----------------------------------------------------+ | | | | | | | | | | | | | | | | | | | | | ???????????????????????????????????????? | | ???????????????????????????????####????? | | ??????????????????????????????## ##???? | | ?????????????????????????????## #???? | | ??????########???????????????# ##??? | | ??????#"" """#???????????????## =#??? | | ??????#=!!!!!#????????????????## *=#??? | | ???????# = #??????????????????## %##??? | | ???????#!%!!#??####?????????????#%##???? | | ??????###%%##### ##????????????# #????? | | ?????## X ## ##########???# #????? | | ????## # ## #???# #????? | | ????# ### #### ## #???# #????? | | ????# ## ##??# ## ##??# #????? | | ##### #???# ## #### #????? | | | #??# ##@ ## ##???? | | *! %= #??# a #???? | | ##%# #??# #??? | | ?#%## ##??##### #??? | | ?#%%## ##???????###### # #??? | | ?#%### #?????????????# ####??? | | ?#%#?## #?????????????# #?????? | | ?#%#??##### #????????????? ?????? | | ?# #??????## ##????????????? #????? | | ?# #???????#####??????????????"" #????? | | ?# #?????????????????????????""" #????? | | ?? ??????????????????????????""" #????? | | ?? ???????????????????????????? #????? | | ?? ?????????????????????????????###????? | | ??%????????????????????????????????????? | | ?? ????????????????????????????????????? | | ?? ????????????????????????????????????? | | ??!????????????????????????????????????? | | ???????????????????????????????????????? | | ???????????????????????????????????????? | | ???????????????????????????????????????? | | ???????????????????????????????????????? | | ???????????????????????????????????????? | | ???????????????????????????????????????? | | ???????????????????????????????????????? | +----------------------------------------------------+ Best States ------------- Heat Dissipation 35 Energy Generation 10 Energy Capacity 450 Matter Stores 300 Matter Capacity 300 Sight Range 16 Terrain Scan Density 10 Evasion (%) 50 Recoil Reduction 2 Item Schematics ----------------- None Robot Schematics ------------------ None Fabricated ------------ Nothing Alien Tech Used ----------------- None Achievements -------------- None Challenges ------------ None Game ------ Seed ShadingHellfireTendrils Manual? 0 Play Time 00:21:03 Cumulative 3.7 hours Start 2021.03.18 @ 11:58:12 End 2021.03.18 @ 16:33:01 Sessions 5 Manual Loads 0 Difficulty Rogue Special Mode None Game No. 8 Rogue 8 Adventurer 0 Explorer 0 Win Type - Total 0 Types 0/0/0/0/0/0/0/0/0 Lore% 3 Gallery% 6 Achievement% 7 Wizard Run 0 Options --------- ASCII 0 Keyboard 1 Movement Numpad Keybinds 0 Fullscreen 2 Font 18/Terminus Map View 76x50 Tactical HUD 1 Map Filters NONE Filters NONE Steam 1 RUN: 052fa4f0-0820-47c2-8655-d78214e928e6